bitfinex/quotes_BTCUSD_20250215
["timestamp","ask_amount","ask_price","bid_price","bid_amount"]
[1739578167534,0.01916974,97416.0,97415.0,0.15398]
[1739578167763,0.01916974,97416.0,97415.0,0.23924596]
[1739578169325,0.01916974,97416.0,97415.0,0.28434596]
[1739578169541,0.01916974,97416.0,97415.0,0.28634596]
[1739578169754,0.01916974,97416.0,97415.0,0.28934596]
[1739578170379,0.01916974,97416.0,97415.0,0.28634596]
[1739578170585,0.092682,97425.0,97415.0,0.13236596]
[1739578170796,0.092682,97425.0,97424.0,0.23923196]
[1739578171002,0.092682,97425.0,97424.0,0.28433196]
[1739578172623,0.093682,97425.0,97424.0,0.29133196]
[1739578173028,0.093682,97425.0,97424.0,0.1348]
[1739578173238,0.094682,97425.0,97424.0,0.1408]
[1739578173439,0.094682,97425.0,97424.0,0.14336596]
[1739578173593,0.10458571,97425.0,97424.0,0.1408]
[1739578173794,0.10458571,97425.0,97424.0,0.14336596]
[1739578174000,0.10458571,97425.0,97424.0,0.1408]
[1739578174448,0.10458571,97425.0,97424.0,0.14336596]
[1739578174838,0.25854971,97425.0,97424.0,0.1408]
[1739578175065,0.25854971,97425.0,97424.0,0.0581]
[1739578176283,0.25854971,97425.0,97424.0,0.013]
[1739578179616,0.25854971,97425.0,97424.0,0.01556596]
[1739578180247,0.10458571,97425.0,97424.0,0.01556596]
[1739578180445,0.10458571,97425.0,97424.0,0.16953196]
[1739578180806,0.094682,97425.0,97424.0,0.16953196]
[1739578181173,0.094682,97425.0,97424.0,0.24983196]
[1739578191833,0.094682,97425.0,97424.0,0.24993846]
[1739578195064,0.094682,97425.0,97424.0,0.16963846]
[1739578198619,0.094682,97425.0,97424.0,0.01567246]
[1739578198822,0.10467768,97425.0,97424.0,0.01567246]
[1739578199024,0.10467768,97425.0,97424.0,0.16963846]
[1739578199271,0.094682,97425.0,97424.0,0.01567246]
[1739578199624,0.10469434,97425.0,97424.0,0.16963846]
[1739578199833,0.094682,97425.0,97424.0,0.16963846]
[1739578200033,0.10469491,97425.0,97424.0,0.16963846]
[1739578200431,0.094682,97425.0,97424.0,0.16963846]
[1739578201710,0.094682,97425.0,97424.0,0.01567246]
[1739578201912,0.10469491,97425.0,97424.0,0.01567246]
[1739578202891,0.25865891,97425.0,97424.0,0.01567246]
[1739578203506,0.25865891,97425.0,97424.0,0.0131065]
[1739578203879,0.25665891,97425.0,97424.0,0.0001065]
[1739578204276,0.25865891,97425.0,97424.0,0.0111065]
[1739578204569,0.25865891,97425.0,97424.0,0.0071065]
[1739578204870,0.25865891,97425.0,97424.0,0.0111065]
[1739578205097,0.25965891,97425.0,97424.0,0.0111065]
[1739578205316,0.25765891,97425.0,97424.0,0.0001065]
[1739578205523,0.25865891,97425.0,97424.0,0.0041065]
[1739578206461,0.25965891,97425.0,97424.0,0.0101065]
[1739578210872,0.25965891,97425.0,97424.0,0.01267246]
[1739578211082,0.51216256,97425.0,97424.0,0.0101065]
[1739578211500,0.59076256,97425.0,97424.0,0.0101065]
[1739578211918,0.59992829,97425.0,97424.0,0.0041065]
[1739578212065,0.8905425,97425.0,97424.0,0.0041065]
[1739578212310,0.8885425,97425.0,97424.0,0.0001065]
[1739578212714,0.92053717,97425.0,97424.0,0.0011065]
[1739578213314,0.92153717,97425.0,97424.0,0.0071065]
[1739578213538,0.8895425,97425.0,97424.0,0.0071065]
[1739578213731,0.8885425,97425.0,97424.0,0.0011065]
[1739578214130,0.9480425,97425.0,97424.0,5e-07]
[1739578214306,0.98002321,97425.0,97424.0,5e-07]
[1739578214504,0.153978,97416.0,97400.0,0.00022365]
[1739578214734,0.56656236,97416.0,97400.0,0.00022365]
[1739578214936,0.57643668,97416.0,97415.0,5e-07]
[1739578215489,0.89005089,97416.0,97415.0,5e-07]
[1739578215739,1.00255454,97416.0,97415.0,5e-07]
[1739578215914,0.90005089,97416.0,97415.0,5e-07]
[1739578216817,0.86807018,97416.0,97415.0,5e-07]
[1739578217017,0.89999612,97416.0,97415.0,5e-07]
[1739578217482,0.90599612,97416.0,97415.0,5e-07]
[1739578217768,0.89999612,97416.0,97415.0,5e-07]
[1739578217976,0.432102,97401.0,97400.0,0.00022365]
[1739578218206,0.82521986,97401.0,97400.0,0.00022365]
[1739578218407,0.83509406,97401.0,97400.0,0.00022365]
[1739578219531,0.83609406,97401.0,97400.0,0.00022365]
[1739578220760,0.83809406,97401.0,97400.0,0.00022365]
[1739578221949,0.78859406,97401.0,97400.0,0.00022365]
[1739578222098,0.55999406,97401.0,97400.0,0.00022365]
[1739578222302,0.55999406,97401.0,97400.0,0.15679361]
[1739578222303,0.0128742,97401.0,97400.0,0.15679361]
[1739578222688,0.003,97401.0,97400.0,0.15679361]
[1739578222892,0.003,97401.0,97400.0,0.28279361]
[1739578223100,0.001,97401.0,97400.0,0.28279361]
[1739578223314,0.001,97401.0,97400.0,0.28679361]
[1739578224179,0.153983,97413.0,97406.0,0.153994]
[1739578224408,0.20529,97423.0,97412.0,0.00256596]
[1739578224612,0.153971,97421.0,97412.0,0.00256596]
[1739578224819,0.153971,97421.0,97420.0,0.00256596]
[1739578225702,0.00976026,97421.0,97420.0,0.00256596]
[1739578226128,0.00976026,97421.0,97419.0,0.236573]
[1739578226129,0.092682,97425.0,97424.0,0.00256596]
[1739578226542,0.10248065,97425.0,97424.0,0.00256596]
[1739578227571,0.092682,97425.0,97424.0,0.00256596]
[1739578227981,0.092682,97425.0,97424.0,0.00456596]
[1739578228682,0.092682,97425.0,97424.0,0.00556596]
[1739578228881,0.092682,97425.0,97424.0,0.00456596]
[1739578229023,0.093682,97425.0,97424.0,0.00556596]
[1739578229229,0.093682,97425.0,97424.0,0.00356596]
[1739578229433,0.093682,97425.0,97424.0,0.00856596]
[1739578229636,0.094682,97425.0,97424.0,0.00956596]
[1739578231126,0.094682,97425.0,97424.0,0.16353196]
[1739578231715,0.094682,97425.0,97424.0,0.00956596]
[1739578232171,0.10464327,97425.0,97424.0,0.16353196]
[1739578232936,0.094682,97425.0,97424.0,0.16353196]
[1739578233134,0.094682,97425.0,97424.0,0.00956596]
[1739578233337,0.094682,97425.0,97424.0,0.007]
[1739578233686,0.10464327,97425.0,97424.0,0.00956596]
[1739578234248,0.10464327,97425.0,97424.0,0.007]
[1739578235855,0.25860727,97425.0,97424.0,0.00956596]
[1739578236130,0.25860727,97425.0,97424.0,0.007]
[1739578236723,0.10464327,97425.0,97424.0,0.007]
[1739578237295,0.10464327,97425.0,97424.0,0.00956596]
[1739578239026,0.10474987,97425.0,97424.0,0.00956596]
[1739578239243,0.10474987,97425.0,97424.0,0.007]
[1739578240078,0.10474987,97425.0,97424.0,0.00956596]
[1739578241050,0.25871387,97425.0,97424.0,0.00956596]
[1739578241476,0.25871387,97425.0,97424.0,0.007]
[1739578241672,0.25871387,97425.0,97424.0,0.00956596]
[1739578242280,0.25871387,97425.0,97424.0,0.007]
[1739578242643,0.25871387,97425.0,97424.0,0.00956596]
[1739578243819,0.10474987,97425.0,97424.0,0.00956596]
[1739578244001,0.10474987,97425.0,97424.0,0.16353196]
[1739578246342,0.25871387,97425.0,97424.0,0.00956596]
[1739578246723,0.10474987,97425.0,97424.0,0.00956596]
[1739578248552,0.25871387,97425.0,97424.0,0.00956596]
[1739578248751,0.25871387,97425.0,97424.0,0.007]
[1739578249147,0.25871387,97425.0,97424.0,0.00956596]
[1739578249323,0.10474987,97425.0,97424.0,0.00956596]
[1739578249532,0.10474987,97425.0,97424.0,0.16353196]
[1739578249856,0.0947886,97425.0,97424.0,0.16353196]
[1739578250125,0.10475861,97425.0,97424.0,0.16353196]
[1739578251359,0.10475861,97425.0,97424.0,0.21375826]
[1739578251565,0.0947886,97425.0,97424.0,0.21273196]
[1739578258950,0.0947886,97425.0,97424.0,0.007]
[1739578258951,0.2487526,97425.0,97424.0,0.007]
[1739578259168,0.0947886,97425.0,97424.0,0.00956596]
[1739578259374,0.25877288,97425.0,97424.0,0.00956596]
[1739578259744,0.10480888,97425.0,97424.0,0.00956596]
[1739578259970,0.25877288,97425.0,97424.0,0.00956596]
[1739578260924,0.10480888,97425.0,97424.0,0.00956596]
[1739578261127,0.08311604,97424.0,97416.0,0.359283]
[1739578261415,0.23708204,97424.0,97416.0,0.205305]
[1739578261846,0.00999578,97423.0,97416.0,0.205305]
[1739578262052,0.00999578,97423.0,97420.0,0.153971]
[1739578262264,0.00999578,97423.0,97416.0,0.205305]
[1739578262449,0.08411604,97424.0,97417.0,0.0010264]
[1739578262576,0.08511604,97424.0,97423.0,0.153967]
[1739578262993,0.08411604,97424.0,97421.0,0.205292]
[1739578263210,0.00999566,97423.0,97416.0,0.007]
[1739578263431,0.153977,97417.0,97416.0,0.007]
[1739578263634,0.303978,97416.0,97393.0,0.0475]
[1739578263844,0.303978,97416.0,97390.0,0.00022365]
[1739578264073,0.31471283,97416.0,97393.0,0.154014]
[1739578264275,0.31471283,97416.0,97390.0,0.20558165]
[1739578264690,0.31471283,97416.0,97390.0,0.15424265]
[1739578264888,0.31471283,97416.0,97390.0,0.00022365]
[1739578265132,0.31471283,97416.0,97415.0,0.00222386]
[1739578265371,0.31471283,97416.0,97415.0,0.00022386]
[1739578266212,0.31571283,97416.0,97415.0,0.00722386]
[1739578266701,0.31471283,97416.0,97415.0,0.00222386]
[1739578266852,0.41721648,97416.0,97415.0,0.00222386]
[1739578267060,0.41721648,97416.0,97415.0,0.00422386]
[1739578267513,0.41721648,97416.0,97415.0,0.00022386]
[1739578267824,0.41721648,97416.0,97415.0,0.00422386]
[1739578267999,0.31471283,97416.0,97415.0,0.00222386]
[1739578268414,0.31471283,97416.0,97415.0,0.00422386]
[1739578268609,0.41721648,97416.0,97415.0,0.00422386]
[1739578268996,0.41721648,97416.0,97415.0,0.00222386]
[1739578269381,0.41721648,97416.0,97415.0,0.00422386]
[1739578270143,0.41721648,97416.0,97415.0,0.00222386]
[1739578270342,0.41721648,97416.0,97415.0,0.00422386]
[1739578270495,0.41721648,97416.0,97415.0,0.00222386]
[1739578270952,0.41721648,97416.0,97415.0,0.00422386]
[1739578271789,0.01073483,97416.0,97415.0,0.15820386]
[1739578271993,0.01073483,97416.0,97415.0,0.15923023]
[1739578272176,0.20549866,97431.0,97415.0,0.00422386]
[1739578272405,0.15417866,97431.0,97423.0,0.153967]
[1739578272605,0.00022366,97431.0,97423.0,0.153967]
[1739578272995,0.15417866,97431.0,97423.0,0.153967]
[1739578273396,0.15399931,97430.0,97423.0,0.153967]
[1739578273778,0.15399931,97430.0,97423.0,0.156967]
[1739578274125,4.331e-05,97430.0,97423.0,0.156967]
[1739578274483,4.331e-05,97430.0,97423.0,0.158967]
[1739578277351,4.331e-05,97430.0,97423.0,0.237067]
[1739578278235,4.331e-05,97430.0,97423.0,0.33457065]
[1739578278495,4.331e-05,97430.0,97423.0,0.35757065]
[1739578278617,0.08411604,97424.0,97423.0,0.41107065]
[1739578279021,0.08311604,97424.0,97423.0,0.40407065]
[1739578279223,0.08311604,97424.0,97423.0,0.41107065]
[1739578279224,0.08411604,97424.0,97423.0,0.41107065]
[1739578279420,0.08511604,97424.0,97423.0,0.41807065]
[1739578279872,0.08411604,97424.0,97423.0,0.41107065]
[1739578280801,0.08511604,97424.0,97423.0,0.41807065]
[1739578281021,0.08411604,97424.0,97423.0,0.41107065]
[1739578281579,0.08311604,97424.0,97423.0,0.40407065]
[1739578281778,0.08311604,97424.0,97423.0,0.41107065]
[1739578281957,0.08411604,97424.0,97423.0,0.41807065]
[1739578282142,0.08411604,97424.0,97423.0,0.41107065]
[1739578282347,0.08411604,97424.0,97423.0,0.41807065]
[1739578283760,0.08411604,97424.0,97423.0,0.74017065]
[1739578285641,0.08411604,97424.0,97423.0,0.90017065]
[1739578288924,0.08411604,97424.0,97423.0,0.9003943]
[1739578289322,0.001,97424.0,97423.0,0.4388273]
[1739578289523,0.001,97424.0,97423.0,0.5927943]
[1739578289756,0.0011065,97424.0,97423.0,0.6157943]
[1739578292154,0.0011065,97424.0,97423.0,0.5927943]
[1739578292363,0.0011065,97424.0,97423.0,0.33632365]
[1739578292771,0.0011065,97424.0,97423.0,0.49029065]
[1739578293342,0.0760065,97424.0,97423.0,0.00722365]
[1739578293653,0.0760065,97424.0,97423.0,0.16119065]
[1739578293654,0.0011065,97424.0,97423.0,0.16119065]
[1739578293872,0.00930807,97424.0,97423.0,0.16819065]
[1739578294020,0.0011065,97424.0,97423.0,0.16819065]
[1739578294221,0.0011065,97424.0,97423.0,0.15419065]
[1739578294427,0.0001065,97424.0,97423.0,0.00022365]
[1739578294635,0.1550725,97424.0,97423.0,0.01422365]
[1739578294806,0.16361598,97424.0,97423.0,0.00722365]
[1739578296325,0.16461598,97424.0,97423.0,0.01422365]
[1739578296529,0.01064998,97424.0,97423.0,0.01422365]
[1739578298254,0.16461598,97424.0,97423.0,0.01422365]
[1739578298450,0.01064998,97424.0,97423.0,0.01422365]
[1739578300196,0.01064998,97424.0,97423.0,0.2706943]
[1739578300398,0.01064998,97424.0,97423.0,0.3036943]
[1739578300596,0.01064998,97424.0,97423.0,0.4536943]
[1739578300597,0.0021065,97424.0,97423.0,0.4536943]
[1739578301013,0.0001065,97424.0,97423.0,0.4466943]
[1739578301217,0.0001065,97424.0,97423.0,0.4396943]
[1739578301463,0.0011065,97424.0,97423.0,0.4536943]
[1739578302535,0.0011065,97424.0,97423.0,0.4466943]
[1739578302789,0.0001065,97424.0,97423.0,0.4466943]
[1739578303147,0.0001065,97424.0,97423.0,0.4536943]
[1739578303356,0.0001065,97424.0,97423.0,0.4333943]
[1739578305256,0.0001065,97424.0,97423.0,0.7554943]
[1739578305935,1e-07,97425.0,97424.0,0.336966]
[1739578306139,1e-07,97425.0,97424.0,0.43946965]
[1739578307105,1e-07,97425.0,97424.0,0.45346965]
[1739578307536,1e-07,97425.0,97424.0,0.53256965]
[1739578308551,0.00022366,97431.0,97430.0,0.01]
[1739578308552,7.3e-07,97431.0,97430.0,0.01]
[1739578308757,7.3e-07,97431.0,97430.0,0.44048564]
[1739578308961,7.3e-07,97431.0,97430.0,0.43945965]
[1739578309869,7.3e-07,97431.0,97430.0,0.44645965]
[1739578310191,7.3e-07,97431.0,97430.0,0.45345965]
[1739578310653,7.3e-07,97431.0,97430.0,1.31565965]
[1739578317122,7.3e-07,97431.0,97430.0,1.36325965]
[1739578325826,7.3e-07,97431.0,97430.0,1.3634833]
[1739578326288,8.9e-07,97440.0,97439.0,0.313942]
[1739578326499,0.0001065,97460.0,97439.0,0.313942]
[1739578326500,3.9e-07,97446.0,97439.0,0.76154565]
[1739578326706,3.9e-07,97446.0,97445.0,0.336932]
[1739578326932,3.9e-07,97446.0,97445.0,0.43943565]
[1739578327343,3.9e-07,97450.0,97449.0,0.336926]
[1739578327586,3.9e-07,97450.0,97449.0,0.52132965]
[1739578328150,3.9e-07,97450.0,97449.0,0.53147387]
[1739578328472,3.9e-07,97450.0,97449.0,0.58067387]
[1739578329716,3.9e-07,97450.0,97449.0,0.58767387]
[1739578329923,3.9e-07,97450.0,97449.0,0.59467387]
[1739578331380,3.9e-07,97450.0,97449.0,0.91677387]
[1739578336666,3.9e-07,97450.0,97449.0,0.83487387]
[1739578337152,0.00010689,97450.0,97449.0,0.83487387]
[1739578337436,0.00010689,97450.0,97449.0,0.014]
[1739578337626,0.07520689,97450.0,97449.0,0.167926]
[1739578337827,0.0842341,97450.0,97449.0,0.167926]
[1739578338182,0.07520689,97450.0,97449.0,0.014]
[1739578338607,0.0847702,97450.0,97449.0,0.007]
[1739578338815,0.07520689,97450.0,97449.0,0.007]
[1739578339048,0.0847702,97450.0,97449.0,0.014]
[1739578339614,0.07520689,97450.0,97449.0,0.014]
[1739578340103,0.23862349,97450.0,97449.0,0.014]
[1739578340392,0.28512349,97450.0,97449.0,0.014]
[1739578340595,0.53762714,97450.0,97449.0,0.014]
[1739578341407,0.53762714,97450.0,97449.0,0.007]
[1739578341609,0.53762714,97450.0,97449.0,0.011]
[1739578342115,0.38370214,97450.0,97430.0,0.00022365]
[1739578342298,0.0832,97449.0,97430.0,0.00022365]
[1739578342503,0.153943,97439.0,97430.0,0.00022365]
[1739578342701,0.00943409,97438.0,97430.0,0.00022365]
[1739578342976,0.2332,97449.0,97430.0,0.00022365]
[1739578343119,0.00943437,97448.0,97430.0,0.00022365]
[1739578343319,0.15395,97435.0,97430.0,0.00522365]
[1739578343560,0.00943419,97434.0,97430.0,0.01022365]
[1739578343760,0.15,97445.0,97430.0,0.01022365]
[1739578343988,0.153939,97441.0,97430.0,0.01022365]
[1739578344188,0.15394,97440.0,97430.0,0.01022365]
[1739578344320,0.16337424,97440.0,97430.0,0.01022365]
[1739578344733,0.16337424,97440.0,97430.0,0.00522365]
[1739578344954,0.153942,97439.0,97430.0,0.01022365]
[1739578345159,0.00973653,97438.0,97430.0,0.00022365]
[1739578345566,0.00973653,97438.0,97430.0,0.00522365]
[1739578345800,0.153941,97440.0,97430.0,0.01022365]
[1739578345990,0.00959436,97437.0,97430.0,0.00022365]
[1739578346190,0.00959461,97439.0,97432.0,0.153953]
[1739578346392,0.00959424,97436.0,97432.0,0.153953]
[1739578346603,0.22560583,97457.0,97430.0,0.00522365]
[1739578346754,0.02038683,97457.0,97430.0,0.00022365]
[1739578346960,0.153943,97439.0,97430.0,0.00522365]
[1739578347161,0.00959426,97438.0,97431.0,0.153953]
[1739578347350,0.205239,97447.0,97430.0,0.00522365]
[1739578347546,0.00959439,97446.0,97430.0,0.00522365]
[1739578347918,0.153937,97443.0,97430.0,0.16417865]
[1739578348209,0.00959433,97442.0,97430.0,0.00022365]
[1739578348406,0.00959433,97442.0,97430.0,0.15417965]
[1739578348562,0.205243,97446.0,97430.0,0.00522365]
[1739578348769,0.153939,97442.0,97430.0,0.00522365]
[1739578348963,0.00959431,97441.0,97430.0,0.01022365]
[1739578349172,0.16353331,97441.0,97430.0,0.00522365]
[1739578349375,0.153955,97431.0,97430.0,0.00022365]
[1739578349576,0.23904939,97431.0,97430.0,0.00522365]
[1739578349819,0.23904939,97431.0,97430.0,0.01022365]
[1739578350019,0.23904939,97431.0,97430.0,0.00522365]
[1739578350858,0.23904939,97431.0,97430.0,0.00022365]
[1739578351291,0.23904939,97431.0,97430.0,0.00522365]
[1739578351770,0.23904939,97431.0,97430.0,0.00022365]
[1739578351970,0.23904939,97431.0,97430.0,0.00422365]
[1739578352173,0.23904939,97431.0,97430.0,0.00822365]
[1739578356191,0.00959439,97431.0,97430.0,0.16217965]
[1739578356405,0.0001065,97460.0,97449.0,0.153926]
[1739578356406,0.00010689,97450.0,97449.0,0.153926]
[1739578356608,0.00010689,97450.0,97449.0,0.15495209]
[1739578357019,0.00010689,97450.0,97449.0,0.25745574]
[1739578357269,0.00010689,97450.0,97449.0,0.25642965]
[1739578358322,0.00010689,97450.0,97449.0,0.26542965]
[1739578358541,0.00010689,97450.0,97449.0,0.61052965]
[1739578358934,0.00010689,97450.0,97449.0,0.76852965]
[1739578359123,0.00010689,97450.0,97449.0,0.77552965]
[1739578360155,0.00010689,97450.0,97449.0,0.76152965]
[1739578360569,0.00010689,97450.0,97449.0,0.76852965]
[1739578361247,0.00010689,97450.0,97449.0,0.76152965]
[1739578361453,0.00010689,97450.0,97449.0,0.76852965]
[1739578361656,0.00010689,97450.0,97449.0,0.77552965]
[1739578362437,0.00010689,97450.0,97449.0,0.76852965]
[1739578362633,0.00010689,97450.0,97449.0,0.77552965]
[1739578363293,0.00010689,97450.0,97449.0,0.76852965]
[1739578363738,0.00010689,97450.0,97449.0,0.77552965]
[1739578364122,0.00010689,97450.0,97449.0,1.31562965]
[1739578374644,0.00010689,97450.0,97449.0,1.30562965]
[1739578374852,0.00010689,97450.0,97449.0,1.31562965]
[1739578375613,0.00010689,97450.0,97449.0,1.13262965]
[1739578376040,0.00010689,97450.0,97449.0,0.59252965]
[1739578376584,0.00010689,97450.0,97449.0,0.58552965]
[1739578376788,0.00010689,97450.0,97449.0,0.59252965]
[1739578376988,0.00010689,97450.0,97449.0,0.58552965]
[1739578377342,0.00010689,97450.0,97449.0,0.59252965]
[1739578377554,0.00010689,97450.0,97449.0,0.58552965]
[1739578378000,0.00010689,97450.0,97449.0,0.3221]
[1739578378203,0.15403189,97450.0,97449.0,0.007]
[1739578378403,0.16307589,97450.0,97449.0,0.014]
[1739578378539,0.00915089,97450.0,97449.0,0.014]
[1739578379394,0.00915089,97450.0,97449.0,0.007]
[1739578379818,0.16307589,97450.0,97449.0,0.007]
[1739578380215,0.00915089,97450.0,97449.0,0.014]
[1739578380557,0.00915089,97450.0,97449.0,0.007]
[1739578380760,0.21167589,97450.0,97449.0,0.014]
[1739578381889,0.28847589,97450.0,97449.0,0.014]
[1739578382302,0.13455089,97450.0,97449.0,0.014]
[1739578382519,0.28847589,97450.0,97449.0,0.014]
[1739578386227,0.28847589,97450.0,97449.0,0.007]
[1739578386379,0.28847589,97450.0,97449.0,0.014]
[1739578386610,0.28847589,97450.0,97449.0,0.007]
[1739578387105,0.28847589,97450.0,97446.0,0.00022365]
[1739578387288,0.13455089,97450.0,97449.0,0.164926]
[1739578387483,0.00915089,97450.0,97449.0,0.164926]
[1739578387924,0.00010689,97450.0,97449.0,0.164926]
[1739578388607,0.00010689,97450.0,97449.0,0.158926]
[1739578389478,0.00010689,97450.0,97449.0,0.153926]
[1739578389631,0.00010689,97450.0,97449.0,0.158926]
[1739578389836,0.00010689,97450.0,97449.0,0.164926]
[1739578390012,0.00010689,97450.0,97449.0,0.26742965]
[1739578390629,0.00010689,97450.0,97449.0,0.26142965]
[1739578391030,0.00010689,97450.0,97449.0,0.25642965]
[1739578391361,0.00010689,97450.0,97449.0,0.26342965]
[1739578391918,0.00010689,97450.0,97449.0,0.27042965]
[1739578392543,0.00010689,97450.0,97449.0,0.26342965]
[1739578392928,0.00010689,97450.0,97449.0,0.27042965]
[1739578393812,0.00010689,97450.0,97449.0,0.59252965]
[1739578396554,0.00010689,97450.0,97449.0,0.3361]
[1739578396954,0.00010689,97450.0,97449.0,0.490026]
[1739578397155,0.00907115,97450.0,97449.0,0.490026]
[1739578397357,0.00010689,97450.0,97449.0,0.490026]
[1739578398168,0.00907148,97450.0,97449.0,0.490026]
[1739578398528,0.15403189,97450.0,97449.0,0.3361]
[1739578399113,0.16299626,97450.0,97449.0,0.3361]
[1739578399456,0.16299626,97450.0,97449.0,0.3291]
[1739578399795,0.16299626,97450.0,97449.0,0.006]
[1739578399998,0.16299626,97450.0,97449.0,0.011]
[1739578402329,0.26549991,97450.0,97449.0,0.011]
[1739578402530,0.34829991,97450.0,97449.0,0.011]
[1739578402926,0.34829991,97450.0,97449.0,0.005]
[1739578403676,0.34829991,97450.0,97449.0,0.011]
[1739578403869,0.34829991,97450.0,97449.0,0.006]
[1739578404069,0.34829991,97450.0,97449.0,0.01]
[1739578405170,0.34829991,97450.0,97449.0,0.004]
[1739578405573,0.34829991,97450.0,97449.0,0.009]
[1739578406018,0.153929,97447.0,97446.0,0.00022365]
[1739578406221,0.1628005,97447.0,97446.0,0.00022365]
[1739578407439,0.1628005,97447.0,97446.0,0.00422365]
[1739578408443,0.1628005,97447.0,97446.0,0.00822365]
[1739578410517,0.26530415,97447.0,97446.0,0.00822365]
[1739578410707,0.40343354,97447.0,97446.0,0.00822365]
[1739578410904,0.55343354,97447.0,97446.0,0.00822365]
[1739578411691,0.55343354,97447.0,97446.0,0.00422365]
[1739578411889,0.55343354,97447.0,97446.0,0.00522365]
[1739578412095,0.55343354,97447.0,97446.0,0.00122365]
[1739578412579,0.55343354,97447.0,97446.0,0.00222365]
[1739578414953,0.54456204,97447.0,97446.0,0.00222365]
[1739578415312,0.55331037,97447.0,97446.0,0.00222365]
[1739578415541,0.54318098,97447.0,97446.0,0.00222365]
[1739578415741,0.00874833,97447.0,97446.0,0.00222365]
[1739578415909,0.16267733,97447.0,97446.0,0.00222365]
[1739578416078,0.25643265,97447.0,97446.0,0.00222365]
[1739578416288,0.26520884,97447.0,97446.0,0.00222365]
[1739578416728,0.26520884,97447.0,97446.0,0.00122365]
[1739578417126,0.26520884,97447.0,97446.0,0.00622365]
[1739578417351,0.26520884,97447.0,97446.0,0.00522365]
[1739578417877,0.26520884,97447.0,97446.0,0.01122365]
[1739578418230,0.26531534,97447.0,97446.0,0.00522365]
[1739578418436,0.26531534,97447.0,97446.0,0.00622365]
[1739578418631,0.28446296,97447.0,97446.0,0.01122365]
[1739578419015,0.28446296,97447.0,97446.0,0.00022365]
[1739578419188,0.28446296,97447.0,97446.0,0.00522365]
[1739578419398,0.28446296,97447.0,97446.0,0.01022365]
[1739578421707,0.02803031,97447.0,97446.0,0.01022365]
[1739578422322,0.02803031,97447.0,97446.0,0.16415465]
[1739578423289,0.00888269,97447.0,97446.0,0.16415465]
[1739578423833,0.0001065,97447.0,97446.0,0.16415465]
[1739578424034,0.00916271,97447.0,97446.0,0.16415465]
[1739578426946,0.00916271,97447.0,97446.0,0.21075465]
[1739578427428,0.0001065,97447.0,97446.0,0.21075465]
[1739578437819,0.0001065,97447.0,97446.0,0.01022365]
[1739578438020,0.0001065,97447.0,97446.0,0.16415465]
[1739578438426,0.00925801,97447.0,97446.0,0.16415465]
[1739578439031,0.0001065,97447.0,97446.0,0.16415465]
[1739578439242,0.00925818,97447.0,97446.0,0.16415465]
[1739578439633,0.0001065,97447.0,97446.0,0.01022365]
[1739578440020,0.1540355,97447.0,97446.0,0.01022365]
[1739578440347,0.16317668,97447.0,97446.0,0.01022365]
[1739578457871,0.16317668,97447.0,97446.0,0.00522365]
[1739578458228,0.16317668,97447.0,97446.0,0.00922365]
[1739578458790,0.16317668,97447.0,97446.0,0.00422365]
[1739578458929,0.16317668,97447.0,97446.0,0.00922365]
[1739578459333,0.16317668,97447.0,97446.0,0.00422365]
[1739578460120,0.16317668,97447.0,97446.0,0.00822365]
[1739578468987,0.00924768,97447.0,97446.0,0.16215465]
[1739578469209,0.00924768,97447.0,97446.0,0.24365465]
[1739578469394,0.0001065,97447.0,97446.0,0.3923583]
[1739578470141,0.0001065,97447.0,97446.0,0.3883583]
[1739578470355,0.0001065,97447.0,97446.0,0.3943583]
[1739578470814,0.0001065,97447.0,97446.0,0.3883583]
[1739578471013,0.0001065,97447.0,97446.0,0.3953583]
[1739578471186,0.0001065,97447.0,97446.0,0.3913583]
[1739578471690,0.0001065,97447.0,97446.0,0.3983583]
[1739578472109,0.0001065,97447.0,97446.0,0.3913583]
[1739578472514,0.0001065,97447.0,97446.0,0.3983583]
[1739578476999,0.0001065,97447.0,97446.0,0.7204583]
[1739578502629,5e-07,97447.0,97446.0,0.8934583]
[1739578502830,5e-07,97447.0,97446.0,0.9034583]
[1739578503193,5e-07,97447.0,97446.0,0.93348177]
[1739578503441,5e-07,97447.0,97446.0,0.92648177]
[1739578504028,5e-07,97447.0,97446.0,0.93348177]
[1739578506590,5e-07,97447.0,97446.0,0.92348177]
[1739578506795,5e-07,97447.0,97446.0,0.8219583]
[1739578508839,5e-07,97447.0,97446.0,0.7889583]
[1739578509056,5e-07,97447.0,97446.0,0.5927583]
[1739578512104,0.2035295,97447.0,97446.0,0.01422365]
[1739578512427,0.21151675,97447.0,97446.0,0.01422365]
[1739578512806,0.23072961,97447.0,97446.0,0.00722365]
[1739578512960,0.23072961,97447.0,97446.0,0.00022365]
[1739578513164,0.07680061,97447.0,97446.0,0.01422365]
[1739578513367,0.23072961,97447.0,97446.0,0.00722365]
[1739578513596,0.23072961,97447.0,97446.0,0.00022365]
[1739578513930,0.23072961,97447.0,97446.0,0.01422365]
[1739578514276,0.21151675,97447.0,97446.0,0.00722365]
[1739578514978,0.21151675,97447.0,97446.0,0.00022365]
[1739578515345,0.21151675,97447.0,97446.0,0.00722365]
[1739578515546,0.21151675,97447.0,97446.0,0.00022365]
[1739578516092,0.21151675,97447.0,97446.0,0.00522365]
[1739578516422,0.21151675,97447.0,97446.0,0.01222365]
[1739578516630,0.21151675,97447.0,97446.0,0.00722365]
[1739578516836,0.5397204,97447.0,97446.0,0.00022365]
[1739578517047,0.5397204,97447.0,97446.0,0.01122365]
[1739578518476,0.5397204,97447.0,97446.0,0.00622365]
[1739578518703,0.5397204,97447.0,97446.0,0.00922365]
[1739578518704,0.55888981,97447.0,97446.0,0.00922365]
[1739578518919,0.57917137,97447.0,97446.0,0.00922365]
[1739578519271,0.57917137,97447.0,97446.0,0.00322365]
[1739578519471,0.57917137,97447.0,97446.0,0.00022365]
[1739578519671,0.57917137,97447.0,97446.0,0.00322365]
[1739578520209,0.57917137,97447.0,97446.0,0.00022365]
[1739578521172,0.58017137,97447.0,97446.0,0.00022365]
[1739578521949,0.58117137,97447.0,97446.0,0.00022365]
[1739578522155,0.58117137,97447.0,97446.0,6.5e-07]
[1739578522432,0.58217137,97447.0,97446.0,6.5e-07]
[1739578522599,0.58117137,97447.0,97446.0,6.5e-07]
[1739578523022,0.58217137,97447.0,97446.0,6.5e-07]
[1739578523472,0.58117137,97447.0,97446.0,6.5e-07]
[1739578523645,0.58217137,97447.0,97446.0,6.5e-07]
[1739578525534,0.303955,97431.0,97430.0,0.00022365]
[1739578525740,0.53979758,97431.0,97430.0,0.00022365]
[1739578526349,0.55896699,97431.0,97430.0,0.00022365]
[1739578526589,0.55896699,97431.0,97430.0,0.00122365]
[1739578527168,0.55896699,97431.0,97430.0,0.00022365]
[1739578527482,0.55996699,97431.0,97430.0,0.00022365]